Cogmind - Beta 11 @@@ ROGUE MODE // 2022.04.03 @ 16:05:31 Player: Nicolas Result: Self-destructed Performance ------------- Evolutions (2) 1000 Regions Visited (4) 800 Robots Destroyed (18) 90 Value Destroyed (520) 520 Prototype IDs (0) 0 Alien Tech Used (0) 0 Bonus (0) 0 TOTAL SCORE: 2410 Bonus ------- None Cogmind --------- Core Integrity 83/550 Matter 275/300 Energy 76/100 System Corruption 2% Temperature Cool (0) Movement Walking (120) Location -8/Materials Parts ------- > --- POWER (3) -------- (None) > --- PROPULSION (3) --- Aluminum Leg Carbon-fiber Leg > --- UTILITY (3) ------ Terrain Scan Processor > --- WEAPON (2) ------- (None) > --- INVENTORY (5) ---- (None) Peak State ------------ > --- POWER ------------ Ion Engine Improved Ion Engine Light Nuclear Core > --- PROPULSION ------- Carbon-fiber Leg Carbon-fiber Leg Carbon-fiber Leg > --- UTILITY ---------- Improved Heat Sink Small Storage Unit Terrain Scan Processor > --- WEAPON ----------- Particle Gun Assault Rifle > --- INVENTORY -------- Light Ion Engine Heat Sink EM Pulse Gun [Rating: 24] Favorites ----------- Power Light Ion Engine Engine Light Ion Engine Power Core Light Nuclear Core Propulsion Wheel Leg Carbon-fiber Leg Wheel Wheel Utility Terrain Scan Processor Device Heat Sink Storage Small Storage Unit Processor Terrain Scan Processor Weapon Assault Rifle Energy Gun Particle Gun Ballistic Gun Assault Rifle Build | -11 -10 -10 -9 -8 ------- Run | Scr Mat Min Mat Mat Slots Evolved 4 | . . . 2 2 Power 2 | . . . 1 1 Propulsion 1 | . . . . 1 Utility 1 | . . . 1 . Weapon . | . . . . . Parts Attached 31 | 6 2 1 4 18 Power 9 | 1 . 1 2 5 Engine 7 | 1 . 1 2 3 Core 2 | . . . . 2 Reactor . | . . . . . Propulsion 9 | 2 . . 1 6 Treads . | . . . . . Leg 6 | . . . . 6 Wheel 3 | 2 . . 1 . Hover . | . . . . . Flight . | . . . . . Utility 5 | 1 1 . 1 2 Device 3 | . . . 1 2 Storage 1 | 1 . . . . Processor 1 | . 1 . . . Hackware . | . . . . . Protection . | . . . . . Artifact . | . . . . . Weapon 8 | 2 1 . . 5 Energy Gun 6 | 1 1 . . 4 Energy Cannon . | . . . . . Ballistic Gun 2 | 1 . . . 1 Ballistic Cannon . | . . . . . Launcher . | . . . . . Special Weapon . | . . . . . Impact Weapon . | . . . . . Slashing Weapon . | . . . . . Piercing Weapon . | . . . . . Special Melee Weapon . | . . . . . Unidentified Prototypes . | . . . . . Parts Lost 16 | . . . . 16 Power 5 | . . . . 5 Propulsion 3 | . . . . 3 Utility 3 | . . . . 3 Weapon 5 | . . . . 5 Highest Loss Streak 13 | . . . . 13 To Critical Strikes . | . . . . . Average Slot Usage (%) 85 | . 97 100 92 74 Engine 15 | . 14 14 22 13 Core 1 | . . . . 3 Leg 9 | . . . . 18 Wheel 12 | . 28 28 20 2 Device 4 | . . . 5 6 Storage 10 | . 14 14 11 7 Processor 10 | . 14 14 11 9 Energy Gun 9 | . 12 14 11 7 Ballistic Gun 9 | . 14 14 11 6 Naked Turns . | . . . . . Heaviest Build 28 | 12 13 13 21 28 Greatest Support 47 | 20 20 20 20 47 Greatest Overweight (x) 2 | . . . 2 1 Average Overweight (x) . | . . . . . Largest Inventory Capacity 8 | 8 8 8 8 8 Average Capacity 7 | 6 8 8 8 7 Most Carried 5 | 2 4 4 4 5 Average Carried 3 | . 2 3 3 3 Final Capacity 8 | 8 8 8 8 5 Final Carried 4 | 2 3 3 4 . Class Distribution -------------------- 100% | Mutant Dominant Class ---------------- Mutant | -10/Materials Mutant | -10/Mines Mutant | -9/Materials Mutant | -8/Materials Resources | -11 -10 -10 -9 -8 ----------- Run | Scr Mat Min Mat Mat Matter Collected 565 | 200 34 42 83 206 Remotely . | . . . . . Salvage Created 571 | . 34 42 112 383 Parts 36 | . 7 6 5 18 Haulers Intercepted . | . . . . . Recyclers Shooed . | . . . . . Parts Field Recycled . | . . . . . Retrieved Matter . | . . . . . Parts Self-Destructed . | . . . . . Prevented . | . . . . . Kills | -11 -10 -10 -9 -8 ------- Run | Scr Mat Min Mat Mat Combat Hostiles Destroyed 18 | . 3 3 3 9 Guns 18 | . 3 3 3 9 Classes Destroyed 3 | . 1 . 1 1 Swarmer 8 | . 3 3 . 2 Grunt 8 | . . . 3 5 Sentry 2 | . . . . 2 Best Kill Streak 4 | . 3 3 3 4 Combat Bots Only 4 | . 3 3 3 4 Max Kills in Single Turn 2 | . 2 2 1 1 Gunslinging 1 | . 1 . . . Exploded . | . . . . . Melee . | . . . . . Uniques/NPCs Destroyed . | . . . . . Combat | -11 -10 -10 -9 -8 -------- Run | Scr Mat Min Mat Mat Damage Taken 1943 | . 75 10 96 1762 Core 494 | . 17 . 10 467 Absorbed by Shields . | . . . . . Regen/Repaired (Parts) 31 | . . . 31 . Core Remaining (%) 96 | 100 . 93 97 . Volleys Fired 61 | . 4 3 6 48 Largest 2 | . 2 2 2 2 Hottest 105 | . 85 85 85 105 Shots Fired 113 | . 8 6 12 87 Gun 113 | . 8 6 12 87 Cannon . | . . . . . Launcher . | . . . . . Special . | . . . . . Kinetic 49 | . 4 3 6 36 Thermal 60 | . 4 3 6 47 Explosive . | . . . . . Electromagnetic 4 | . . . . 4 Robot Hit Streak 6 | . 4 1 6 4 Robot Miss Streak 5 | . 2 2 1 5 Penetration Max . | . . . . . Secondary Targets 5 | . 1 . 1 3 Max Gunslinging Chain 1 | . 1 . 1 1 Shots Hit Robots 70 | . 5 2 10 53 Core Hits 33 | . 3 3 5 22 Critical Kills . | . . . . . Critical Parts Destroyed . | . . . . . Critical Strikes 1 | . . . . 1 Burn 1 | . . . . 1 Melee Attacks . | . . . . . Impact . | . . . . . Slashing . | . . . . . Piercing . | . . . . . Sneak Attacks . | . . . . . Combat Hostiles . | . . . . . Follow-up Attacks . | . . . . . Damage Inflicted 1063 | . 71 45 153 794 Guns 1030 | . 71 45 153 761 Cannons . | . . . . . Explosions . | . . . . . Melee . | . . . . . Ramming 33 | . . . . 33 Kinetic 421 | . 39 14 77 291 Thermal 576 | . 32 31 76 437 Explosive . | . . . . . Electromagnetic 33 | . . . . 33 Impact . | . . . . . Slashing . | . . . . . Piercing . | . . . . . Highest Corruption 2 | . . . . 2 Average Corruption 2 | . . . . 2 Corruption Purged . | . . . . . Corruption Blocked . | . . . . . Effects 1 | . . . . 1 Data Loss (minor) 1 | . . . . 1 Overload Shots . | . . . . . Overflow Damage . | . . . . . Projectiles . | . . . . . Explosions . | . . . . . Melee . | . . . . . Knockbacks . | . . . . . Impact . | . . . . . Kinetic . | . . . . . Secondary . | . . . . . Self-Inflicted Damage 14 | . . . . 14 Shots . | . . . . . Rammed 13 | . . . . 13 Targets Rammed 13 | . . . . 13 Kicked . | . . . . . Crushed . | . . . . . Highest Temperature 405 | . 96 72 252 405 Average Temperature 112 | . 50 38 134 122 Received Heat Transfer 630 | . . . 54 576 Effects 1 | . . . . 1 Energy Bleed 1 | . . . . 1 Siege Activations . | . . . . . Robots Corrupted . | . . . . . Combat Hostiles . | . . . . . Parts Fried . | . . . . . Impact Corruptions . | . . . . . Robots Melted . | . . . . . Combat Hostiles . | . . . . . Parts Melted 1 | . . . 1 . Heat Transferred 1480 | . 74 74 185 1147 Parts Sabotaged . | . . . . . Parts Stolen . | . . . . . Parts Stripped . | . . . . . Power Chain Reactions . | . . . . . Missiles Intercepted . | . . . . . Alert | -11 -10 -10 -9 -8 ------- Run | Scr Mat Min Mat Mat Peak Influence 270 | . 70 112 213 270 Initial 89 | . . 27 43 89 Average 140 | . 37 102 153 176 Maximum Alert Level 1 | . . . 1 1 Low Security (%) 65 | 100 100 100 55 51 Level 1 34 | . . . 44 48 Level 2 . | . . . . . Level 3 . | . . . . . Level 4 . | . . . . . Level 5 . | . . . . . High Security . | . . . . . Max Security . | . . . . . Squads Dispatched 7 | . . . 2 5 Investigation 1 | . . . 1 . Extermination . | . . . . . Reinforcement 3 | . . . 1 2 Assault . | . . . . . Garrison 3 | . . . . 3 Intercept . | . . . . . Searches Triggered . | . . . . . Construction Impeded . | . . . . . Haulers Reinforced . | . . . . . Active Scanning Responses . | . . . . . Cargo Convoy Interrupts . | . . . . . Stealth | -11 -10 -10 -9 -8 --------- Run | Scr Mat Min Mat Mat Distress Signals 1 | . 1 . . . Communications Jammed . | . . . . . Distress Signals . | . . . . . Times Spotted 28 | . 3 2 4 19 Peak Tracking Total 6 | . 5 2 5 6 Tactical Retreats 4 | . . . 3 1 Traps | -11 -10 -10 -9 -8 ------- Run | Scr Mat Min Mat Mat Traps Triggered 1 | . . . 1 . Indirectly . | . . . . . Trap Hack Attempts . | . . . . . Triggered . | . . . . . Disarmed . | . . . . . Reprogrammed . | . . . . . Reused . | . . . . . Traps Extracted . | . . . . . Installed . | . . . . . Triggered . | . . . . . Machines | -11 -10 -10 -9 -8 ---------- Run | Scr Mat Min Mat Mat Machines Disabled 1 | . . . . 1 Max in Single Turn 1 | . . . . 1 Machines Sabotaged . | . . . . . Garrisons Compromised . | . . . . . Overloaded Fab Kills . | . . . . . Hacking | -11 -10 -10 -9 -8 --------- Run | Scr Mat Min Mat Mat Machines Accessed 1 | . . . 1 . Terminals . | . . . . . Fabricators . | . . . . . Repair Stations 1 | . . . 1 . Recycling Units . | . . . . . Scanalyzers . | . . . . . Garrison Access . | . . . . . Total Hacks 2 | . . . 2 . Successful 2 | . . . 2 . Failed . | . . . . . Catastrophic . | . . . . . Database Lockouts . | . . . . . Manual . | . . . . . Terminals . | . . . . . Fabricators . | . . . . . Repair Stations 2 | . . . 2 . Recycling Units . | . . . . . Scanalyzers . | . . . . . Garrison Access . | . . . . . Terminal Hacks . | . . . . . Fabricator Hacks . | . . . . . Repair Station Hacks 2 | . . . 2 . Scan Component 1 | . . . 1 . Repair 1 | . . . 1 . Recycling Unit Hacks . | . . . . . Scanalyzer . | . . . . . Garrison Access Hacks . | . . . . . Unauthorized Hacks . | . . . . . Terminals . | . . . . . Fabricators . | . . . . . Repair Stations . | . . . . . Recycling Units . | . . . . . Scanalyzers . | . . . . . Garrison Access . | . . . . . Data Cores Recovered . | . . . . . Used . | . . . . . Hacking Detections 1 | . . . 1 . Full Trace Events . | . . . . . Feedback Events . | . . . . . Feedback Blocked . | . . . . . Robot Schematics Acquired . | . . . . . Robots Built . | . . . . . Authchips . | . . . . . Time . | . . . . . Total Robot Build Rating . | . . . . . Part Schematics Acquired . | . . . . . Parts Built . | . . . . . Authchips . | . . . . . Time . | . . . . . Total Part Build Rating . | . . . . . Parts Repaired 1 | . . . 1 . Time 26 | . . . 26 . Parts Recycled . | . . . . . Recycled Matter . | . . . . . Retrieved Matter . | . . . . . Retrieved Components . | . . . . . Parts Scanalyzed . | . . . . . Part Schematics Acquired . | . . . . . Parts Damaged . | . . . . . Bothacking | -11 -10 -10 -9 -8 ------------ Run | Scr Mat Min Mat Mat Used RIF Installer . | . . . . . Robots Hacked . | . . . . . Non-combat . | . . . . . Combat . | . . . . . Robot Hacks Applied . | . . . . . Relay Couplers Released . | . . . . . Fabnet Peak Effective % . | . . . . . Robots Rewired . | . . . . . Allies Hacked . | . . . . . Hacks Repelled . | . . . . . Allies | -11 -10 -10 -9 -8 -------- Run | Scr Mat Min Mat Mat Total Allies . | . . . . . Largest Group . | . . . . . Highest-Rated Group . | . . . . . Highest-Rated Ally . | . . . . . Total Orders . | . . . . . Ally Attacks . | . . . . . Total Damage . | . . . . . Kills . | . . . . . Allies Corrupted . | . . . . . Allies Melted . | . . . . . Intel | -11 -10 -10 -9 -8 ------- Run | Scr Mat Min Mat Mat Robot Analysis Total . | . . . . . Derelict Logs Recovered . | . . . . . Drone Launches . | . . . . . Drone Recoveries . | . . . . . Exploration | -11 -10 -10 -9 -8 ------------- Run | Scr Mat Min Mat Mat Turns Passed 891 | 41 71 130 224 425 Spaces Moved 653 | 36 66 148 178 225 Core 73 | 2 . . . 71 Treads . | . . . . . Legs 121 | . . . . 121 Wheels 459 | 34 66 148 178 33 Hover . | . . . . . Flight . | . . . . . Fastest Speed 50 | 50 80 80 80 50 Average Speed 88 | 78 80 80 87 100 Slowest Speed 190 | 80 80 80 110 190 Overloaded Moves . | . . . . . Propulsion Burnouts . | . . . . . Robots Hopped . | . . . . . Cave-ins Triggered . | . . . . . Exploration Rate (%) 20 | 4 17 48 20 15 Regions Visited 4 Branch Regions 1 Pre-discovered Areas . | . . . . . Known Exits Taken . | . . . . . Unknown Exits Taken 4 | 1 1 1 1 . Scrap Searched . | . . . . . Spaces Dug . | . . . . . Terrain Destroyed . | . . . . . Melee . | . . . . . Projectile . | . . . . . AOE . | . . . . . Terrain Rammed . | . . . . . Walls Destroyed . | . . . . . Machines Disabled . | . . . . . Actions | -11 -10 -10 -9 -8 --------- Run | Scr Mat Min Mat Mat Total 840 | 45 75 153 233 334 Wait 70 | 2 2 1 45 20 Move 649 | 35 65 147 177 225 Hop . | . . . . . Pick Up 9 | 2 1 . 1 5 Fast Attach 14 | 6 1 . 2 5 Attach 9 | . 1 . 1 7 Detach 1 | . 1 . . . Swap 8 | . . 1 1 6 Drop 5 | . . 1 . 4 Fire 61 | . 4 3 6 48 Melee . | . . . . . Ram 13 | . . . . 13 Kick . | . . . . . Crush . | . . . . . Escape Stasis . | . . . . . Rewire 1 | . . . . 1 Trap . | . . . . . Miscellaneous . | . . . . . Route ------- -11/Scrapyard -10/Materials -10/Mines -9/Materials -8/Materials History --------- Turn | Location | Event 23 | -11/Scrapyard | Discovered new exit (range 15) 42 | -11/Scrapyard | Entered Materials 108 | -10/Materials | Discovered new exit (range 6) 113 | -10/Materials | Entered Mines 152 | -10/Mines | Found a hidden stash of uninstalled traps 190 | -10/Mines | Joined a pair of Derelicts in attacking an 0b10 outpost 238 | -10/Mines | Discovered new exit (range 7) 243 | -10/Mines | Entered Materials 243 | -9/Materials | Evolved 2 slots: Power x1, Utility x1 312 | -9/Materials | Build established: Mutant 412 | -9/Materials | Discovered new exit (range 16) 460 | -9/Materials | Repaired Wheel 467 | -9/Materials | Entered another Materials area 467 | -8/Materials | Evolved 2 slots: Power x1, Propulsion x1 656 | -8/Materials | Garrison activated, responded to threat 833 | -8/Materials | Core integrity fell below 50% 838 | -8/Materials | Lost 13 parts (5p3n2u3w) 865 | -8/Materials | Core integrity fell below 20% 892 | -8/Materials | Self-destructed Last Messages --------------- 00824_ K-01 Serf collects debris. 00824_ Slammed into S-10 Pest. 00824_ Destabilizing: System interference. 00824_ Terrain Scan Processor temporarily disabled. 00825_ Slammed into S-10 Pest. 00829_ K-01 Serf collects debris. 00832_ S-10 Pest destroyed. 00838_ K-01 Serf cleans the Nuclear Reactor. 00838_ Slammed into S-10 Pest. 00840_ Sml. Storage Unit destroyed. 00840_ Slammed into S-10 Pest. 00840_ Destabilizing: System corrupted (+2). 00846_ Attempting to rewire U-05 Engineer. 00846_ U-05 Engineer is broken beyond repair. 00850_ C-30 ARC bursts open, deploying its payload. 00850_ G-50 Soldier unfolds itself. 00850_ G-47 Trooper unfolds itself. 00854_ System corrupted: Component data lost. 00880_ Destroyed Flight Unit. 00889_ Particle Gun destroyed. Map ----- +----------------------------------------------------+ | ??????????????????????????????????????? | | ??????????????????????????????????????? | | ??????????????????????????????????????? | | ??????????????????????????????????????? | | ??????????????????????????????????????? | | ??????????????????????????????????????? | | ??????????????????????????????????????? | | ??????????????????????????????????????? | | ??????????????????????????????????????? | | ??????????????????????????????????????? | | ??????????????????????????????????????? | | ??????????????????????????????????????? | | ??????????????????????????????????????? | | ??????????????????????????????????????? | | ??????????????????????????????????????? | | ??????????????????????????????????????? | | ??????????????????????????????????????? | | ??????????????????????????????????????? | | ??????????????????????????????????????? | | ?????????????????????########?????????? | | ########?????????????# #?????????? | | #?????????????# ""#?????????? | | #?????????????# T"#?????????? | | #?????????????# ""#?????????? | | #?????????????# #?????????? | | ########?????????????# @ #?????????? | | #########################/####????????? | | s #????????? | | #????????? | | #????????? | | ####+#############+###########????????? | | ## #????????????? | | " !* ## """ // #????????????? | | ""%= ## """ /] #????????????? | | "" / ## """ / #????????????? | | ==## ! ! #????????????? | | ##########################????????????? | | | | | | | | | | | | | | | | | | | | | | | | | | | +----------------------------------------------------+ Best States ------------- Heat Dissipation 50 Energy Generation 26 Energy Capacity 475 Matter Stores 300 Matter Capacity 300 Sight Range 16 Terrain Scan Density 85 Evasion (%) 55 Item Schematics ----------------- None Robot Schematics ------------------ None Fabricated ------------ Nothing Alien Tech Used ----------------- None Achievements -------------- None Challenges ------------ None Game ------ Seed GaussSupersonicCoupler Manual? 0 Play Time 00:22:10 Cumulative 4.6 hours Start 2022.04.03 @ 15:45:15 End 2022.04.03 @ 16:05:31 Sessions 1 Manual Loads 0 Difficulty Rogue Special Mode None Game No. 17 Rogue 17 Adventurer 0 Explorer 0 Win Type - Total 0 Types 0/0/0/0/0/0/0/0/0 Lore% 2 Gallery% 9 Achievement% 10 Wizard Run 0 Options --------- ASCII 0 Keyboard 0 Movement Numpad Keybinds 0 Fullscreen 1 Font 18/SmallcapsGlow Map View 76x50 Tactical HUD 1 Map Filters NONE Filters NONE Steam 1 RUN: 65970c25-0d6b-401f-8200-cec389e81f15